fUSD/lending_fUSD_20250423
["ID","MTS","AMOUNT","RATE_DAILY","PERIOD"]
[358696961,1745383847820,-206.454831,0.0004,14]
[358696962,1745383847829,-151.0,0.0004,14]
[358696963,1745383847839,-151.0,0.0004,14]
[358696964,1745383847849,-151.0,0.0004,14]
[358696965,1745383847863,-151.0,0.0004,14]
[358696966,1745383847873,-151.0,0.0004,14]
[358696967,1745383847883,-180.0,0.0004009,23]
[358696968,1745383847892,-843.49715552,0.00040271,5]
[358696969,1745383847904,-1500.0,0.00040271,5]
[358696970,1745383847913,-506.18221623,0.00040271,5]
[358696971,1745383847923,-2061.46,0.000403,14]
[358696972,1745383847937,-152.0,0.00040401,3]
[358696973,1745383847947,-1289.46,0.00040711,2]
[358696974,1745383847958,-1576.0484505,0.000409,16]
[358696975,1745383847968,-750.0,0.00041,2]
[358696976,1745383847978,-183.0,0.00041,14]
[358696977,1745383847989,-156.0,0.00041,14]
[358696978,1745383847998,-3040.01405914,0.00041079,2]
[358696979,1745383848007,-2000.0,0.00041095,2]
[358696980,1745383848018,-2000.0,0.00041095,2]
[358696981,1745383848027,-2000.0,0.00041095,2]
[358696982,1745383848037,-2000.0,0.00041095,2]
[358696983,1745383848047,-2000.0,0.00041095,2]
[358696984,1745383848058,-2000.0,0.00041095,2]
[358696985,1745383848068,-2000.0,0.00041095,2]
[358696986,1745383848078,-2000.0,0.00041095,2]
[358696987,1745383848088,-2000.0,0.00041095,2]
[358696988,1745383848098,-2000.0,0.00041095,2]
[358696989,1745383848108,-2000.0,0.00041095,2]
[358696990,1745383848118,-2000.0,0.00041095,2]
[358696991,1745383848129,-2000.0,0.00041095,2]
[358696992,1745383848140,-2000.0,0.00041095,2]
[358696993,1745383848151,-2000.0,0.00041095,2]
[358696994,1745383848161,-1516.65832337,0.00041095,2]
[358696995,1745383848172,-151.0,0.00041095,14]
[358696996,1745383848184,-237.577437,0.00041095,14]
[358696997,1745383848194,-421.595129,0.00041095,14]
[358696998,1745383848205,-421.595129,0.00041095,14]
[358696999,1745383848215,-500.0,0.00041096,10]
[358697000,1745383848225,-150.0,0.00041096,7]
[358697001,1745383848235,-43217.0,0.000412,2]
[358697002,1745383848245,-158.85871913,0.0004137,7]
[358697003,1745383848255,-1000.0,0.00041644,10]
[358697004,1745383848265,-2061.46,0.000417,14]
[358697005,1745383848275,-1576.0484505,0.000419,16]
[358697006,1745383848285,-5565.0,0.00042,3]
[358697007,1745383848295,-311.97860147,0.00042192,10]
[358697008,1745383848305,-153.66,0.0004227,2]
[358697009,1745383848316,-767607.87842535,0.000426,2]
[358697010,1745383848326,-5565.0,0.000428,5]
[358697011,1745383848335,-906.993,0.00042837,2]
[358697012,1745383848345,-796.0,0.00042837,2]
[358697013,1745383848355,-500.91,0.00042837,2]
[358697014,1745383848365,-1285.0,0.00042837,2]
[358697015,1745383848375,-1444.0,0.00042837,2]
[358697016,1745383848385,-3964.664,0.00042837,2]
[358697017,1745383848394,-876.0,0.00042837,2]
[358697018,1745383848405,-2145.0,0.00042837,2]
[358697019,1745383848415,-152.0,0.00042849,4]
[358697020,1745383848427,-1576.0484505,0.000429,17]
[358697021,1745383848437,-1289.46,0.00042975,2]
[358697022,1745383848447,-2061.46,0.00043,14]
[358697023,1745383848457,-800.0,0.00043,2]
[358697024,1745383848467,-1102.78563424,0.00043,2]
[358697025,1745383848476,-500.0,0.00043288,7]
[358697026,1745383848486,-150.05898027,0.00043429,10]
[358697027,1745383848497,-500.0,0.00043562,7]
[358697028,1745383848507,-1000.0,0.00043658,2]
[358697029,1745383848516,-685.57527812,0.00043713,7]
[358697030,1745383848526,-2061.46,0.000438,14]
[358697031,1745383848536,-79516.286427,0.00043834,10]
[358697032,1745383848546,-151.0,0.00043836,14]
[358697033,1745383848556,-151.0,0.00043836,14]
[358697034,1745383848566,-151.0,0.00043836,14]
[358697035,1745383848576,-151.0,0.00043836,14]
[358697036,1745383848585,-151.0,0.00043836,14]
[358697037,1745383848595,-151.0,0.00043836,14]
[358697038,1745383848605,-374.83204137,0.00043836,2]
[358697039,1745383848615,-10000.0,0.00043836,30]
[358697040,1745383848625,-5710.0,0.00043836,7]
[358697041,1745383848635,-150.76,0.00043836,30]
[358697042,1745383848645,-500.0,0.00043836,7]
[358697043,1745383848655,-152.704056,0.00043836,14]
[358697044,1745383848666,-152.704056,0.00043836,14]
[358697045,1745383848678,-151.0,0.00043836,14]
[358697046,1745383848688,-1502.199312,0.00043836,14]
[358697047,1745383848698,-151.0,0.00043836,14]
[358697048,1745383848708,-151.0,0.00043836,14]
[358697049,1745383848718,-151.0,0.00043836,14]
[358697050,1745383848728,-151.0,0.00043836,14]
[358697051,1745383848738,-151.0,0.00043836,14]
[358697052,1745383848748,-151.0,0.00043836,14]
[358697053,1745383848758,-269.553122,0.00043836,14]
[358697054,1745383848768,-269.553122,0.00043836,14]
[358697055,1745383848778,-220.921621,0.00043836,14]
[358697056,1745383848788,-220.921621,0.00043836,14]
[358697057,1745383848799,-840.550709,0.00043836,14]
[358697058,1745383848809,-840.550709,0.00043836,14]
[358697059,1745383848819,-151.0,0.00043836,14]
[358697060,1745383848830,-501.314133,0.00043836,14]
[358697061,1745383848839,-151.0,0.00043836,14]
[358697062,1745383848850,-501.314133,0.00043836,14]
[358697063,1745383848865,-151.0,0.00043836,14]
[358697064,1745383848875,-151.0,0.00043836,14]
[358697065,1745383848885,-190.265889,0.00043836,14]
[358697066,1745383848895,-190.265889,0.00043836,14]
[358697067,1745383848906,-316.675447,0.00043836,14]
[358697068,1745383848916,-316.675447,0.00043836,14]
[358697069,1745383848927,-151.0,0.00043836,14]
[358697070,1745383848937,-830.993183,0.00043836,14]
[358697071,1745383848947,-830.993183,0.00043836,14]
[358697072,1745383848957,-151.0,0.00043836,14]
[358697073,1745383848968,-151.0,0.00043836,14]
[358697074,1745383848977,-412.241262,0.00043836,14]
[358697075,1745383848988,-412.241262,0.00043836,14]
[358697076,1745383848998,-151.0,0.00043836,14]
[358697077,1745383849007,-2562.339587,0.00043836,14]
[358697078,1745383849017,-2562.339587,0.00043836,14]
[358697079,1745383849026,-151.0,0.00043836,14]
[358697080,1745383849036,-151.0,0.00043836,14]
[358697081,1745383849046,-874.166081,0.00043836,14]
[358697082,1745383849055,-151.0,0.00043836,14]
[358697083,1745383849065,-874.166081,0.00043836,14]
[358697084,1745383849075,-151.0,0.00043836,14]
[358697085,1745383849085,-151.0,0.00043836,14]
[358697086,1745383849094,-151.0,0.00043836,14]
[358697087,1745383849104,-151.0,0.00043836,14]
[358697088,1745383849113,-203.081804,0.00043836,14]
[358697089,1745383849122,-203.081804,0.00043836,14]
[358697090,1745383849132,-151.0,0.00043836,14]
[358697091,1745383849141,-155.160062,0.00043836,14]
[358697092,1745383849151,-151.0,0.00043836,14]
[358697093,1745383849161,-734.670196,0.00043836,14]
[358697094,1745383849171,-734.670196,0.00043836,14]
[358697095,1745383849181,-206.454831,0.00043836,14]
[358697096,1745383849190,-206.454831,0.00043836,14]
[358697097,1745383849200,-421.595129,0.00043836,14]
[358697098,1745383849210,-421.595129,0.00043836,14]
[358697099,1745383849219,-500.0,0.00043836,120]
[358697100,1745383849229,-735.057757,0.00043836,31]
[358697101,1745383849238,-735.057757,0.00043836,31]
[358697102,1745383849249,-378.16323935,0.00043836,120]
[358697103,1745383849258,-735.057757,0.00043836,31]
[358697104,1745383849268,-735.057757,0.00043836,31]
[358697105,1745383849277,-500.0,0.00043836,120]
[358697106,1745383849287,-735.057757,0.00043836,31]
[358697107,1745383849297,-735.057757,0.00043836,31]
[358697108,1745383849307,-735.057757,0.00043836,31]
[358697109,1745383849317,-735.057757,0.00043836,31]
[358697110,1745383849327,-735.057757,0.00043836,31]
[358697111,1745383849338,-735.057757,0.00043836,31]
[358697112,1745383849348,-735.057757,0.00043836,31]
[358697113,1745383849358,-735.057757,0.00043836,31]
[358697114,1745383849368,-735.057757,0.00043836,31]
[358697115,1745383849378,-735.057757,0.00043836,31]
[358697116,1745383849388,-735.057757,0.00043836,31]
[358697117,1745383849398,-735.057757,0.00043836,31]
[358697118,1745383849407,-735.057757,0.00043836,31]
[358697119,1745383849417,-735.057757,0.00043836,31]
[358697120,1745383849428,-735.057757,0.00043836,31]
[358697121,1745383849438,-735.057757,0.00043836,31]
[358697122,1745383849448,-735.057757,0.00043836,31]
[358697123,1745383849458,-735.057757,0.00043836,31]
[358697124,1745383849468,-735.057757,0.00043836,31]
[358697125,1745383849479,-735.057757,0.00043836,31]
[358697126,1745383849489,-735.057757,0.00043836,31]
[358697127,1745383849499,-735.057757,0.00043836,31]
[358697128,1745383849509,-735.057757,0.00043836,31]
[358697129,1745383849519,-735.057757,0.00043836,31]
[358697130,1745383849528,-735.057757,0.00043836,31]
[358697131,1745383849539,-735.057757,0.00043836,31]
[358697132,1745383849735,-735.057757,0.00043836,31]
[358697133,1745383849746,-735.057757,0.00043836,31]
[358697134,1745383849757,-735.057757,0.00043836,31]
[358697135,1745383849767,-735.057757,0.00043836,31]
[358697136,1745383849777,-735.057757,0.00043836,31]
[358697137,1745383849787,-735.057757,0.00043836,31]
[358697138,1745383849797,-735.057757,0.00043836,31]
[358697139,1745383849807,-735.057757,0.00043836,31]
[358697140,1745383849819,-735.057757,0.00043836,31]
[358697141,1745383849829,-735.057757,0.00043836,31]
[358697142,1745383849839,-735.057757,0.00043836,31]
[358697143,1745383849850,-735.057757,0.00043836,31]
[358697144,1745383849860,-735.057757,0.00043836,31]
[358697145,1745383849871,-735.057757,0.00043836,31]
[358697146,1745383849881,-9038.5838426,0.0004384,2]
[358697147,1745383849891,-56524.030446,0.0004384,2]
[358697148,1745383849900,-997.6860547,0.0004384,2]
[358697149,1745383849911,-16835.3741655,0.0004384,2]
[358697150,1745383849921,-922.0026267,0.0004384,2]
[358697151,1745383849933,-300.0,0.00043847,30]
[358697152,1745383849943,-500.0,0.00043847,30]
[358697153,1745383849952,-500.0,0.00043847,30]
[358697154,1745383849962,-151.0,0.00043848,14]
[358697155,1745383849971,-812.9372205,0.00043848,2]
[358697156,1745383849980,-151.0,0.00043848,14]
[358697157,1745383849990,-151.0,0.00043848,14]
[358697158,1745383849999,-151.0,0.00043848,14]
[358697159,1745383850008,-151.0,0.00043848,14]
[358697160,1745383850018,-115326.4310203,0.00043848,2]
[358697161,1745383850027,-203.081804,0.00043848,14]
[358697162,1745383850038,-203.081804,0.00043848,14]
[358697163,1745383850047,-263.624752,0.00043848,14]
[358697164,1745383850057,-3737.051218,0.00043848,14]
[358697165,1745383850066,-151.602616,0.00043848,14]
[358697166,1745383850076,-151.602616,0.00043848,14]
[358697167,1745383850086,-472.82254,0.00043848,2]
[358697168,1745383850095,-472.82254,0.00043848,2]
[358697169,1745383850106,-151.0,0.00043848,14]
[358697170,1745383850115,-881.73346,0.00043848,14]
[358697171,1745383850125,-881.73346,0.00043848,14]
[358697172,1745383850134,-206.454831,0.00043848,14]
[358697173,1745383850144,-206.454831,0.00043848,14]
[358697174,1745383850153,-151.0,0.00043848,14]
[358697175,1745383850162,-185.123484,0.00043848,14]
[358697176,1745383850172,-151.0,0.00043848,14]
[358697177,1745383850185,-421.595129,0.00043848,14]
[358697178,1745383850194,-421.595129,0.00043848,14]
[358697179,1745383850204,-151.0,0.00043848,14]
[358697180,1745383850214,-151.0,0.00043848,14]
[358697181,1745383850224,-269.553122,0.00043849,14]
[358697182,1745383850233,-269.553122,0.00043849,14]
[358697183,1745383850243,-188.689586,0.00043849,14]
[358697184,1745383850253,-501.314133,0.00043849,14]
[358697185,1745383850263,-501.314133,0.00043849,14]
[358697186,1745383850273,-151.0,0.00043849,14]
[358697187,1745383850283,-190.265889,0.00043849,14]
[358697188,1745383850292,-190.265889,0.00043849,14]
[358697189,1745383850302,-151.0,0.00043849,14]
[358697190,1745383850311,-830.993183,0.00043849,14]
[358697191,1745383850320,-830.993183,0.00043849,14]
[358697192,1745383850330,-247.684145,0.00043849,14]
[358697193,1745383850339,-412.241262,0.00043849,14]
[358697194,1745383850348,-412.241262,0.00043849,14]
[358697195,1745383850357,-151.0,0.00043849,14]
[358697196,1745383850366,-2562.339587,0.00043849,14]
[358697197,1745383850375,-2562.339587,0.00043849,14]
[358697198,1745383850386,-151.0,0.00043849,14]
[358697199,1745383850396,-244.12793952,0.00043849,14]
[358697200,1745383850405,-874.166081,0.00043849,14]
[358697201,1745383850414,-874.166081,0.00043849,14]
[358697202,1745383850423,-151.0,0.00043849,14]
[358697203,1745383850437,-734.670196,0.00043849,14]
[358697204,1745383850447,-734.670196,0.00043849,14]
[358697205,1745383850456,-1988.7290818,0.0004387,2]
[358697206,1745383850466,-13264.1320819,0.0004387,2]
[358697207,1745383850475,-1576.0484505,0.000439,18]
[358697208,1745383850484,-152.704056,0.0004394,14]
[358697209,1745383850494,-152.704056,0.0004394,14]
[358697210,1745383850503,-151.0,0.0004394,14]
[358697211,1745383850513,-1502.199312,0.0004394,14]
[358697212,1745383850523,-151.0,0.0004394,14]
[358697213,1745383850532,-151.0,0.0004394,14]
[358697214,1745383850542,-151.0,0.0004394,14]
[358697215,1745383850553,-151.0,0.0004394,14]
[358697216,1745383850563,-151.0,0.0004394,14]
[358697217,1745383850573,-151.0,0.0004394,14]
[358697218,1745383850583,-220.921621,0.0004394,14]
[358697219,1745383850593,-220.921621,0.0004394,14]
[358697220,1745383850603,-840.550709,0.0004394,14]
[358697221,1745383850612,-840.550709,0.0004394,14]
[358697222,1745383850622,-151.0,0.0004394,14]
[358697223,1745383850632,-295.900712,0.0004394,14]
[358697224,1745383850642,-316.675447,0.0004394,14]
[358697225,1745383850652,-316.675447,0.0004394,14]
[358697226,1745383850663,-329.08517922,0.00043999,30]
[358697227,1745383850674,-500.0,0.00043999,30]
[358697228,1745383850686,-500.0,0.00043999,30]
[358697229,1745383850696,-199260.0,0.00044,7]
[358697230,1745383850706,-10000.0,0.00044,4]
[358697231,1745383850716,-22146.0,0.00044,3]
[358697232,1745383850726,-152.704056,0.00044,14]
[358697233,1745383850736,-152.704056,0.00044,14]
[358697234,1745383850745,-151.0,0.00044,14]
[358697235,1745383850755,-1502.199312,0.00044,14]
[358697236,1745383850765,-216.348932,0.00044,14]
[358697237,1745383850775,-202.669794,0.00044,14]
[358697238,1745383850785,-151.0,0.00044,14]
[358697239,1745383850795,-154.586906,0.00044,14]
[358697240,1745383850806,-151.0,0.00044,14]
[358697241,1745383850816,-164.027705,0.00044,14]
[358697242,1745383850826,-269.553122,0.00044,14]
[358697243,1745383850836,-269.553122,0.00044,14]
[358697244,1745383850846,-220.921621,0.00044,14]
[358697245,1745383850858,-220.921621,0.00044,14]
[358697246,1745383850868,-840.550709,0.00044,14]
[358697247,1745383850879,-840.550709,0.00044,14]
[358697248,1745383850889,-501.314133,0.00044,14]
[358697249,1745383850900,-151.0,0.00044,14]
[358697250,1745383850911,-501.314133,0.00044,14]
[358697251,1745383850921,-151.0,0.00044,14]
[358697252,1745383850932,-190.265889,0.00044,14]
[358697253,1745383850944,-190.265889,0.00044,14]
[358697254,1745383850954,-316.675447,0.00044,14]
[358697255,1745383850964,-316.675447,0.00044,14]
[358697256,1745383850974,-292.381187,0.00044,14]
[358697257,1745383850983,-830.993183,0.00044,14]
[358697258,1745383850993,-830.993183,0.00044,14]
[358697259,1745383851004,-151.0,0.00044,14]
[358697260,1745383851013,-412.241262,0.00044,14]
[358697261,1745383851023,-412.241262,0.00044,14]
[358697262,1745383851032,-151.0,0.00044,14]
[358697263,1745383851041,-2562.339587,0.00044,14]
[358697264,1745383851051,-2562.339587,0.00044,14]
[358697265,1745383851060,-151.0,0.00044,14]
[358697266,1745383851071,-430.0,0.00044,90]
[358697267,1745383851080,-874.166081,0.00044,14]
[358697268,1745383851091,-151.0,0.00044,14]
[358697269,1745383851100,-874.166081,0.00044,14]
[358697270,1745383851109,-203.954139,0.00044,14]
[358697271,1745383851119,-151.0,0.00044,14]
[358697272,1745383851128,-241.922175,0.00044,14]
[358697273,1745383851138,-151.0,0.00044,14]
[358697274,1745383851147,-203.081804,0.00044,14]
[358697275,1745383851156,-203.081804,0.00044,14]
[358697276,1745383851166,-3737.051218,0.00044,14]
[358697277,1745383851176,-151.602616,0.00044,14]
[358697278,1745383851189,-151.602616,0.00044,14]
[358697279,1745383851198,-472.82254,0.00044,2]
[358697280,1745383851207,-472.82254,0.00044,2]
[358697281,1745383851217,-151.0,0.00044,14]
[358697282,1745383851227,-734.670196,0.00044,14]
[358697283,1745383851237,-734.670196,0.00044,14]
[358697284,1745383851248,-881.73346,0.00044,14]
[358697285,1745383851259,-881.73346,0.00044,14]
[358697286,1745383851268,-206.454831,0.00044,14]
[358697287,1745383851278,-206.454831,0.00044,14]
[358697288,1745383851287,-151.0,0.00044,14]
[358697289,1745383851298,-255.589151,0.00044,14]
[358697290,1745383851308,-421.595129,0.00044,14]
[358697291,1745383851318,-421.595129,0.00044,14]
[358697292,1745383851327,-161.075313,0.00044,14]
[358697293,1745383851337,-151.0,0.00044,14]
[358697294,1745383851346,-430.0,0.0004411,90]
[358697295,1745383851356,-500.0,0.0004411,7]
[358697296,1745383851367,-500.0,0.00044384,7]
[358697297,1745383851377,-1001.84351166,0.000445,2]
[358697298,1745383851388,-1148.47,0.00044537,30]
[358697299,1745383851399,-1148.47,0.00044537,30]
[358697300,1745383851408,-1148.47,0.00044537,30]
[358697301,1745383851418,-1148.47,0.00044537,30]
[358697302,1745383851430,-1148.47,0.00044537,30]
[358697303,1745383851440,-1148.47,0.00044537,30]
[358697304,1745383851449,-1351.56,0.00044537,30]
[358697305,1745383851459,-1045.68,0.00044537,30]
[358697306,1745383851469,-40085.55124237,0.0004459,3]
[358697307,1745383851479,-153.778021,0.0004459,14]
[358697308,1745383851489,-151.0,0.0004459,14]
[358697309,1745383851500,-209.421359,0.0004459,14]
[358697310,1745383851510,-155.837846,0.0004459,14]
[358697311,1745383851521,-195.315414,0.0004459,14]
[358697312,1745383851530,-151.0,0.0004459,14]
[358697313,1745383851540,-151.0,0.0004459,14]
[358697314,1745383851552,-151.0,0.0004459,14]
[358697315,1745383851563,-151.0,0.0004459,14]
[358697316,1745383851572,-153.66,0.00044618,2]
[358697317,1745383851583,-500.0,0.00044658,7]
[358697318,1745383851595,-4814.87180827,0.00044753,2]
[358697319,1745383851605,-150.0,0.00044873,10]
[358697320,1745383851615,-500.0,0.00044895,30]
[358697321,1745383851624,-500.0,0.00044895,30]
[358697322,1745383851634,-152.704056,0.00044896,14]
[358697323,1745383851644,-152.704056,0.00044896,14]
[358697324,1745383851654,-151.0,0.00044896,14]
[358697325,1745383851663,-1502.199312,0.00044896,14]
[358697326,1745383851673,-1502.199312,0.00044896,14]
[358697327,1745383851684,-159.371649,0.00044896,14]
[358697328,1745383851693,-151.0,0.00044896,14]
[358697329,1745383851703,-269.553122,0.00044896,14]
[358697330,1745383851713,-269.553122,0.00044896,14]
[358697331,1745383851722,-220.921621,0.00044896,14]
[358697332,1745383851732,-1000.0,0.00044896,28]
[358697333,1745383851742,-1000.0,0.00044896,28]
[358697334,1745383851751,-1000.0,0.00044896,28]
[358697335,1745383851762,-1000.0,0.00044896,28]
[358697336,1745383851772,-1000.0,0.00044896,28]
[358697337,1745383851781,-220.921621,0.00044896,14]
[358697338,1745383851792,-1000.0,0.00044896,28]
[358697339,1745383851802,-1000.0,0.00044896,28]
[358697340,1745383851812,-1000.0,0.00044896,28]
[358697341,1745383851821,-1000.0,0.00044896,28]
[358697342,1745383851832,-1000.0,0.00044896,28]
[358697343,1745383851842,-1000.0,0.00044896,28]
[358697344,1745383851852,-1000.0,0.00044896,28]
[358697345,1745383851862,-1000.0,0.00044896,28]
[358697346,1745383851876,-1000.0,0.00044896,28]
[358697347,1745383851885,-1000.0,0.00044896,28]
[358697348,1745383851895,-1000.0,0.00044896,28]
[358697349,1745383851905,-1000.0,0.00044896,28]
[358697350,1745383851916,-1000.0,0.00044896,28]
[358697351,1745383851926,-1000.0,0.00044896,28]
[358697352,1745383851937,-1000.0,0.00044896,28]
[358697353,1745383851948,-1000.0,0.00044896,28]
[358697354,1745383851957,-1000.0,0.00044896,28]
[358697355,1745383851967,-1000.0,0.00044896,28]
[358697356,1745383851976,-1000.0,0.00044896,28]
[358697357,1745383851985,-1000.0,0.00044896,28]
[358697358,1745383851995,-1000.0,0.00044896,28]
[358697359,1745383852004,-1000.0,0.00044896,28]
[358697360,1745383852013,-1000.0,0.00044896,28]
[358697361,1745383852022,-1000.0,0.00044896,28]
[358697362,1745383852031,-1000.0,0.00044896,28]
[358697363,1745383852041,-1000.0,0.00044896,28]
[358697364,1745383852050,-1000.0,0.00044896,28]
[358697365,1745383852060,-1000.0,0.00044896,28]
[358697366,1745383852069,-1000.0,0.00044896,28]
[358697367,1745383852078,-1000.0,0.00044896,28]
[358697368,1745383852087,-1000.0,0.00044896,28]
[358697369,1745383852097,-1000.0,0.00044896,28]
[358697370,1745383852106,-1000.0,0.00044896,28]
[358697371,1745383852116,-1000.0,0.00044896,28]
[358697372,1745383852125,-1000.0,0.00044896,28]
[358697373,1745383852135,-1000.0,0.00044896,28]
[358697374,1745383852144,-1000.0,0.00044896,28]
[358697375,1745383852153,-1000.0,0.00044896,28]
[358697376,1745383852162,-1000.0,0.00044896,28]
[358697377,1745383852172,-1000.0,0.00044896,28]
[358697378,1745383852184,-1000.0,0.00044896,28]
[358697379,1745383852193,-1000.0,0.00044896,28]
[358697380,1745383852203,-545.268749,0.00044896,28]
[358697381,1745383852212,-840.550709,0.00044896,14]
[358697382,1745383852221,-840.550709,0.00044896,14]
[358697383,1745383852231,-501.314133,0.00044896,14]
[358697384,1745383852403,-151.0,0.00044896,14]
[358697385,1745383852415,-501.314133,0.00044896,14]
[358697386,1745383852425,-151.0,0.00044896,14]
[358697387,1745383852437,-190.265889,0.00044896,14]
[358697388,1745383852448,-190.265889,0.00044896,14]
[358697389,1745383852458,-316.675447,0.00044896,14]
[358697390,1745383852468,-316.675447,0.00044896,14]
[358697391,1745383852478,-830.993183,0.00044896,14]
[358697392,1745383852488,-151.0,0.00044896,14]
[358697393,1745383852497,-830.993183,0.00044896,14]
[358697394,1745383852508,-151.0,0.00044896,14]
[358697395,1745383852519,-412.241262,0.00044896,14]
[358697396,1745383852528,-412.241262,0.00044896,14]
[358697397,1745383852538,-151.0,0.00044896,14]
[358697398,1745383852549,-2562.339587,0.00044896,14]
[358697399,1745383852559,-2562.339587,0.00044896,14]
[358697400,1745383852570,-151.0,0.00044896,14]
[358697401,1745383852580,-874.166081,0.00044896,14]
[358697402,1745383852591,-151.0,0.00044896,14]
[358697403,1745383852600,-874.166081,0.00044896,14]
[358697404,1745383852611,-151.0,0.00044896,14]
[358697405,1745383852620,-151.0,0.00044896,14]
[358697406,1745383852630,-203.081804,0.00044896,14]
[358697407,1745383852639,-203.081804,0.00044896,14]
[358697408,1745383852648,-3737.051218,0.00044896,14]
[358697409,1745383852658,-151.602616,0.00044896,14]
[358697410,1745383852667,-151.602616,0.00044896,14]
[358697411,1745383852677,-472.82254,0.00044896,2]
[358697412,1745383852688,-472.82254,0.00044896,2]
[358697413,1745383852697,-151.0,0.00044896,14]
[358697414,1745383852707,-734.670196,0.00044896,14]
[358697415,1745383852717,-734.670196,0.00044896,14]
[358697416,1745383852728,-881.73346,0.00044896,14]
[358697417,1745383852737,-881.73346,0.00044896,14]
[358697418,1745383852747,-206.454831,0.00044896,14]
[358697419,1745383852757,-206.454831,0.00044896,14]
[358697420,1745383852766,-151.0,0.00044896,14]
[358697421,1745383852776,-421.595129,0.00044896,14]
[358697422,1745383852786,-421.595129,0.00044896,14]
[358697423,1745383852796,-156.874295,0.00044896,14]
[358697424,1745383852806,-1000.0,0.00044899,2]
[358697425,1745383852816,-42581.78901203,0.00044899,30]
[358697426,1745383852826,-500.0,0.00044899,30]
[358697427,1745383852836,-1308693.64111426,0.000449,120]
[358697428,1745383853335,-150.0,0.00027397,7]
[358697429,1745383853344,-302.76730761,0.000449,120]
[358697430,1745383853655,1148.47,0.00043715,30]
[358697431,1745383953474,500.0,0.00042653,31]
[358697432,1745383953533,500.0,0.00042653,31]
[358697433,1745383953595,500.0,0.00042653,31]
[358697434,1745383953652,500.0,0.00042653,31]
[358697435,1745383953707,500.0,0.00042653,31]
[358697436,1745383953765,528.82307501,0.00042653,31]
[358697437,1745383953836,500.0,0.00042653,31]
[358697438,1745383953906,500.0,0.00042653,31]
[358697439,1745383953962,500.0,0.00042653,31]
[358697440,1745383954037,500.0,0.00042653,31]
[358697441,1745383960831,500.0,0.000438,30]
[358697442,1745384040909,323.0,0.00043,90]
[358697443,1745384041314,323.0,0.00043014,90]
[358697444,1745384059217,453493.0,0.000438,30]
[358697445,1745384073308,558.75811945,0.00039999,31]
[358697446,1745384110124,500.0,0.00046653,120]
[358697447,1745384110375,500.0,0.00046653,120]
[358697448,1745384110713,500.0,0.00046653,120]
[358697449,1745384111020,500.0,0.00046653,120]
[358697450,1745384122566,500.0,0.000438,30]
[358697451,1745384129710,500.0,0.000438,120]
[358697452,1745384135448,500.0,0.000438,30]
[358697454,1745384154903,500.0,0.00046653,120]
[358697455,1745384155135,500.0,0.00046653,120]
[358697456,1745384155388,500.0,0.00046653,120]
[358697457,1745384155674,500.0,0.00046653,120]
[358697458,1745384202077,150.76,0.0004,30]
[358697460,1745384277453,150.0,0.00041095,120]
[358697461,1745384277691,150.0,0.00042465,120]
[358697462,1745384277955,150.0,0.00043835,120]